[Event "Titled Tuesday Blitz February 28 Late 2023"]
[White "Duda, Jan-Krzysztof"]
[Black "Baskakov, Egor"]
[WhiteFideId "1170546"]
[BlackFideId "24197866"]
[WhiteElo "2790"]
[BlackElo "2212"]
[Result "1/2-1/2"]
[Round "06"]
[TimeControl "180+2"]
[Date "2023.02.28"]
[WhiteClock "0:00:03"]
[BlackClock "0:00:04"]

1. Nc3 {[%clk 0:03:00]}  c5 {[%clk 0:02:58]} 2. e4 {[%clk 0:03:00]}  Nc6 {[%clk 0:02:57]} 3. Bc4 {[%clk 0:02:58]}  g6 {[%clk 0:02:56]} 4. h4 {[%clk 0:02:57]}  h6 {[%clk 0:02:55]} 5. d3 {[%clk 0:02:52]}  Bg7 {[%clk 0:02:54]} 6. a3 {[%clk 0:02:51]}  e6 {[%clk 0:02:54]} 7. Ba2 {[%clk 0:02:51]}  Nge7 {[%clk 0:02:55]} 8. f4 {[%clk 0:02:49]}  h5 {[%clk 0:02:52]} 9. Nf3 {[%clk 0:02:45]}  d5 {[%clk 0:02:53]} 10. Bd2 {[%clk 0:02:44]}  Nd4 {[%clk 0:02:52]} 11. Ng5 {[%clk 0:02:36]}  Qb6 {[%clk 0:02:47]} 12. Rb1 {[%clk 0:02:34]}  O-O {[%clk 0:02:36]} 13. Ne2 {[%clk 0:02:29]}  dxe4 {[%clk 0:02:33]} 14. dxe4 {[%clk 0:02:25]}  Rd8 {[%clk 0:02:29]} 15. c3 {[%clk 0:02:22]}  Nxe2 {[%clk 0:02:22]} 16. Qxe2 {[%clk 0:02:23]}  Bd7 {[%clk 0:02:22]} 17. Bc4 {[%clk 0:02:02]}  Qc6 {[%clk 0:02:16]} 18. g4 {[%clk 0:01:59]}  b5 {[%clk 0:02:15]} 19. Bb3 {[%clk 0:01:57]}  c4 {[%clk 0:02:15]} 20. Bc2 {[%clk 0:01:57]}  f6 {[%clk 0:02:11]} 21. gxh5 {[%clk 0:01:57]}  fxg5 {[%clk 0:02:10]} 22. hxg5 {[%clk 0:01:57]}  e5 {[%clk 0:01:51]} 23. h6 {[%clk 0:01:36]}  Bf8 {[%clk 0:01:50]} 24. fxe5 {[%clk 0:01:30]}  Qe6 {[%clk 0:01:28]} 25. Bf4 {[%clk 0:01:29]}  Nc6 {[%clk 0:01:27]} 26. Qh2 {[%clk 0:01:27]}  Kh7 {[%clk 0:01:25]} 27. Rd1 {[%clk 0:01:18]}  Bc5 {[%clk 0:01:26]} 28. Kd2 {[%clk 0:01:15]}  a5 {[%clk 0:01:21]} 29. Kc1 {[%clk 0:01:15]}  b4 {[%clk 0:01:22]} 30. Rd5 {[%clk 0:01:06]}  Bf8 {[%clk 0:01:20]} 31. a4 {[%clk 0:00:57]}  bxc3 {[%clk 0:01:18]} 32. bxc3 {[%clk 0:00:57]}  Ba3+ {[%clk 0:01:11]} 33. Kb1 {[%clk 0:00:54]}  Rab8+ {[%clk 0:00:46]} 34. Ka2 {[%clk 0:00:53]}  Qe7 {[%clk 0:00:31]} 35. Rb1 {[%clk 0:00:44]}  Rxb1 {[%clk 0:00:30]} 36. Bxb1 {[%clk 0:00:45]}  Rb8 {[%clk 0:00:27]} 37. e6 {[%clk 0:00:39]}  Bxe6 {[%clk 0:00:17]} 38. Bxb8 {[%clk 0:00:36]}  Bxd5 {[%clk 0:00:17]} 39. exd5 {[%clk 0:00:36]}  Nxb8 {[%clk 0:00:17]} 40. Qxb8 {[%clk 0:00:35]}  Bd6 {[%clk 0:00:18]} 41. Qb6 {[%clk 0:00:28]}  Qe2+ {[%clk 0:00:10]} 42. Ka1 {[%clk 0:00:27]}  Qe5 {[%clk 0:00:10]} 43. Qxa5 {[%clk 0:00:15]}  Qxg5 {[%clk 0:00:08]} 44. Qb5 {[%clk 0:00:13]}  Qf4 {[%clk 0:00:04]} 45. a5 {[%clk 0:00:11]}  Be5 {[%clk 0:00:04]} 46. a6 {[%clk 0:00:02]}  Bxc3+ {[%clk 0:00:03]} 47. Ka2 {[%clk 0:00:03]}  Qd2+ {[%clk 0:00:04]} 48. Ka3 {[%clk 0:00:03]}  Qc1+ {[%clk 0:00:04]} 49. Ka4 {[%clk 0:00:04]}  Qd1+ {[%clk 0:00:04]} 50. Ka3 {[%clk 0:00:04]}  Qc1+ {[%clk 0:00:04]} 51. Ka2 {[%clk 0:00:03]}  Qd2+ {[%clk 0:00:04]} 52. Ka3 {[%clk 0:00:03]}  Qc1+ {[%clk 0:00:04]} 1/2-1/2


[Site "https://www.chess.com"]

[Event "Titled Tuesday Blitz February 28 Late 2023"]
[White "Grischuk, Alexander"]
[Black "Moroni, Luca Jr"]
[WhiteFideId "4126025"]
[BlackFideId "865834"]
[WhiteElo "2727"]
[BlackElo "2569"]
[Result "1-0"]
[Round "06"]
[TimeControl "180+2"]
[Date "2023.02.28"]
[WhiteClock "0:00:06"]
[BlackClock "0:00:03"]

1. Nf3 {[%clk 0:03:00]}  g6 {[%clk 0:02:59]} 2. e4 {[%clk 0:03:00]}  Bg7 {[%clk 0:03:00]} 3. d4 {[%clk 0:03:00]}  d6 {[%clk 0:03:00]} 4. Bd3 {[%clk 0:03:01]}  Nf6 {[%clk 0:03:01]} 5. O-O {[%clk 0:03:01]}  O-O {[%clk 0:03:01]} 6. Re1 {[%clk 0:03:01]}  Nc6 {[%clk 0:03:02]} 7. d5 {[%clk 0:03:02]}  Nb8 {[%clk 0:03:02]} 8. h3 {[%clk 0:03:02]}  e5 {[%clk 0:03:01]} 9. c4 {[%clk 0:03:02]}  Nh5 {[%clk 0:03:00]} 10. Nc3 {[%clk 0:03:02]}  Nd7 {[%clk 0:02:55]} 11. Rb1 {[%clk 0:02:56]}  h6 {[%clk 0:02:52]} 12. b4 {[%clk 0:02:55]}  f5 {[%clk 0:02:50]} 13. c5 {[%clk 0:02:37]}  f4 {[%clk 0:02:46]} 14. a4 {[%clk 0:02:22]}  g5 {[%clk 0:02:28]} 15. Be2 {[%clk 0:02:10]}  Nhf6 {[%clk 0:02:23]} 16. Ba3 {[%clk 0:02:10]}  g4 {[%clk 0:02:10]} 17. hxg4 {[%clk 0:02:07]}  Nxg4 {[%clk 0:02:10]} 18. Rb3 {[%clk 0:02:02]}  Ndf6 {[%clk 0:02:00]} 19. a5 {[%clk 0:01:56]}  a6 {[%clk 0:01:51]} 20. Bd3 {[%clk 0:01:46]}  h5 {[%clk 0:01:19]} 21. b5 {[%clk 0:01:44]}  axb5 {[%clk 0:01:17]} 22. cxd6 {[%clk 0:01:44]}  cxd6 {[%clk 0:01:15]} 23. Nxb5 {[%clk 0:01:44]}  Ne8 {[%clk 0:01:16]} 24. Bb4 {[%clk 0:01:36]}  Rf6 {[%clk 0:01:15]} 25. Qd2 {[%clk 0:01:33]}  Rg6 {[%clk 0:01:12]} 26. Kf1 {[%clk 0:01:34]}  b6 {[%clk 0:01:00]} 27. Ra1 {[%clk 0:01:18]}  Ba6 {[%clk 0:00:49]} 28. Rba3 {[%clk 0:01:04]}  Bc8 {[%clk 0:00:34]} 29. a6 {[%clk 0:00:59]}  h4 {[%clk 0:00:34]} 30. a7 {[%clk 0:00:50]}  h3 {[%clk 0:00:31]} 31. gxh3 {[%clk 0:00:51]}  Ngf6 {[%clk 0:00:26]} 32. Ke1 {[%clk 0:00:39]}  Bxh3 {[%clk 0:00:24]} 33. Qc2 {[%clk 0:00:33]}  Bg2 {[%clk 0:00:20]} 34. Be2 {[%clk 0:00:33]}  Rh6 {[%clk 0:00:16]} 35. Kd2 {[%clk 0:00:29]}  Rc8 {[%clk 0:00:13]} 36. Rc3 {[%clk 0:00:26]}  Ra8 {[%clk 0:00:12]} 37. Rc6 {[%clk 0:00:24]}  Ng4 {[%clk 0:00:09]} 38. Rg1 {[%clk 0:00:21]}  Bxf3 {[%clk 0:00:09]} 39. Bxf3 {[%clk 0:00:21]}  Nxf2 {[%clk 0:00:09]} 40. Kc1 {[%clk 0:00:19]}  Rh2 {[%clk 0:00:09]} 41. Rg2 {[%clk 0:00:18]}  Rxg2 {[%clk 0:00:08]} 42. Bxg2 {[%clk 0:00:18]}  Ng4 {[%clk 0:00:09]} 43. Bh3 {[%clk 0:00:18]}  Ne3 {[%clk 0:00:09]} 44. Be6+ {[%clk 0:00:18]}  Kf8 {[%clk 0:00:10]} 45. Qh2 {[%clk 0:00:13]}  Qg5 {[%clk 0:00:09]} 46. Nxd6 {[%clk 0:00:13]}  Nxd6 {[%clk 0:00:05]} 47. Bxd6+ {[%clk 0:00:11]}  Ke8 {[%clk 0:00:06]} 48. Rc8+ {[%clk 0:00:10]}  Rxc8+ {[%clk 0:00:05]} 49. Bxc8 {[%clk 0:00:11]}  f3 {[%clk 0:00:06]} 50. a8=Q {[%clk 0:00:10]}  Nf1+ {[%clk 0:00:03]} 51. Kb1 {[%clk 0:00:09]}  Nxh2 {[%clk 0:00:04]} 52. Be6+ {[%clk 0:00:05]}  Qd8 {[%clk 0:00:03]} 53. Qc6+ {[%clk 0:00:06]} 1-0


[Site "https://www.chess.com"]

[Event "Titled Tuesday Blitz February 28 Late 2023"]
[White "Gokerkan, Cem Kaan"]
[Black "Matlakov, Maxim"]
[WhiteFideId "6336760"]
[BlackFideId "4168003"]
[WhiteElo "2365"]
[BlackElo "2666"]
[Result "0-1"]
[Round "06"]
[TimeControl "180+2"]
[Date "2023.02.28"]
[WhiteClock "0:00:08"]
[BlackClock "0:00:09"]

1. e4 {[%clk 0:03:00]}  e5 {[%clk 0:02:59]} 2. Nc3 {[%clk 0:03:00]}  Nf6 {[%clk 0:02:58]} 3. f4 {[%clk 0:03:00]}  d5 {[%clk 0:02:58]} 4. fxe5 {[%clk 0:03:00]}  Nxe4 {[%clk 0:02:58]} 5. Qf3 {[%clk 0:03:01]}  Nc6 {[%clk 0:02:39]} 6. Bb5 {[%clk 0:03:00]}  Nxc3 {[%clk 0:02:26]} 7. dxc3 {[%clk 0:03:01]}  Be7 {[%clk 0:02:26]} 8. Ne2 {[%clk 0:02:53]}  O-O {[%clk 0:02:22]} 9. Bf4 {[%clk 0:02:43]}  Bf5 {[%clk 0:02:14]} 10. O-O-O {[%clk 0:02:41]}  Be4 {[%clk 0:02:12]} 11. Qf2 {[%clk 0:02:14]}  a6 {[%clk 0:02:04]} 12. Bd3 {[%clk 0:02:13]}  Qc8 {[%clk 0:01:52]} 13. Ng3 {[%clk 0:02:10]}  Qe6 {[%clk 0:01:50]} 14. Kb1 {[%clk 0:01:35]}  Bg6 {[%clk 0:01:50]} 15. h4 {[%clk 0:01:26]}  Bxd3 {[%clk 0:01:35]} 16. Rxd3 {[%clk 0:01:26]}  Rad8 {[%clk 0:01:13]} 17. Re1 {[%clk 0:01:23]}  Bxh4 {[%clk 0:01:05]} 18. Rh1 {[%clk 0:01:23]}  Qg4 {[%clk 0:01:04]} 19. Qe3 {[%clk 0:00:49]}  Rfe8 {[%clk 0:00:58]} 20. Ne2 {[%clk 0:00:49]}  f6 {[%clk 0:00:38]} 21. Qd2 {[%clk 0:00:36]}  fxe5 {[%clk 0:00:35]} 22. Bh2 {[%clk 0:00:26]}  Bg5 {[%clk 0:00:30]} 23. Qd1 {[%clk 0:00:25]}  d4 {[%clk 0:00:26]} 24. cxd4 {[%clk 0:00:24]}  exd4 {[%clk 0:00:26]} 25. Rf3 {[%clk 0:00:19]}  Bf6 {[%clk 0:00:21]} 26. Rhf1 {[%clk 0:00:13]}  d3 {[%clk 0:00:21]} 27. cxd3 {[%clk 0:00:14]}  Qb4 {[%clk 0:00:18]} 28. Qc2 {[%clk 0:00:10]}  Rxe2 {[%clk 0:00:09]} 29. Qxe2 {[%clk 0:00:11]}  Nd4 {[%clk 0:00:10]} 30. a3 {[%clk 0:00:10]}  Qb6 {[%clk 0:00:08]} 31. Qe4 {[%clk 0:00:08]}  Nxf3 {[%clk 0:00:07]} 32. Qe2 {[%clk 0:00:03]}  Nxh2 {[%clk 0:00:06]} 33. Rc1 {[%clk 0:00:03]}  Ng4 {[%clk 0:00:06]} 34. Rc4 {[%clk 0:00:03]}  Ne5 {[%clk 0:00:06]} 35. Rb4 {[%clk 0:00:04]}  Qd6 {[%clk 0:00:05]} 36. d4 {[%clk 0:00:04]}  Nc6 {[%clk 0:00:05]} 37. Rc4 {[%clk 0:00:04]}  Nxd4 {[%clk 0:00:05]} 38. Qd3 {[%clk 0:00:05]}  c5 {[%clk 0:00:06]} 39. Rc1 {[%clk 0:00:05]}  b5 {[%clk 0:00:06]} 40. Rd1 {[%clk 0:00:05]}  h6 {[%clk 0:00:05]} 41. Qe4 {[%clk 0:00:06]}  Kh8 {[%clk 0:00:06]} 42. a4 {[%clk 0:00:05]}  Qe5 {[%clk 0:00:06]} 43. Qd3 {[%clk 0:00:05]}  Qf5 {[%clk 0:00:05]} 44. axb5 {[%clk 0:00:04]}  Qxd3+ {[%clk 0:00:05]} 45. Rxd3 {[%clk 0:00:05]}  axb5 {[%clk 0:00:06]} 46. b3 {[%clk 0:00:05]}  c4 {[%clk 0:00:06]} 47. bxc4 {[%clk 0:00:06]}  bxc4 {[%clk 0:00:07]} 48. Rc3 {[%clk 0:00:07]}  Rb8+ {[%clk 0:00:07]} 49. Ka2 {[%clk 0:00:07]}  Ra8+ {[%clk 0:00:07]} 50. Kb1 {[%clk 0:00:08]}  Rc8 {[%clk 0:00:08]} 51. Ka2 {[%clk 0:00:08]}  Nb5 {[%clk 0:00:08]} 52. Re3 {[%clk 0:00:08]}  c3 {[%clk 0:00:09]} 0-1


[Site "https://www.chess.com"]

[Event "Titled Tuesday Blitz February 28 Late 2023"]
[White "Sarana, Alexey"]
[Black "Fier, Alexandr"]
[WhiteFideId "24133795"]
[BlackFideId "2107139"]
[WhiteElo "2717"]
[BlackElo "2610"]
[Result "0-1"]
[Round "06"]
[TimeControl "180+2"]
[Date "2023.02.28"]
[WhiteClock "0:00:07"]
[BlackClock "0:01:29"]

1. c4 {[%clk 0:03:00]}  g6 {[%clk 0:02:58]} 2. d4 {[%clk 0:03:00]}  Nf6 {[%clk 0:02:58]} 3. e4 {[%clk 0:03:00]}  Nxe4 {[%clk 0:02:58]} 4. Bd3 {[%clk 0:03:00]}  Nf6 {[%clk 0:02:58]} 5. Nc3 {[%clk 0:03:00]}  d5 {[%clk 0:02:58]} 6. cxd5 {[%clk 0:02:55]}  Nxd5 {[%clk 0:02:58]} 7. Qf3 {[%clk 0:02:56]}  c6 {[%clk 0:02:49]} 8. Nge2 {[%clk 0:02:54]}  Bg7 {[%clk 0:02:49]} 9. h4 {[%clk 0:02:54]}  h5 {[%clk 0:02:48]} 10. Bg5 {[%clk 0:02:53]}  O-O {[%clk 0:02:43]} 11. Nxd5 {[%clk 0:02:44]}  cxd5 {[%clk 0:02:42]} 12. O-O {[%clk 0:02:43]}  Nc6 {[%clk 0:02:41]} 13. Qe3 {[%clk 0:02:43]}  Bg4 {[%clk 0:02:38]} 14. f3 {[%clk 0:02:40]}  Bd7 {[%clk 0:02:38]} 15. Bb5 {[%clk 0:02:39]}  Re8 {[%clk 0:02:37]} 16. Bxc6 {[%clk 0:02:37]}  Bxc6 {[%clk 0:02:35]} 17. Rfe1 {[%clk 0:02:35]}  Qd7 {[%clk 0:02:35]} 18. Bh6 {[%clk 0:02:27]}  Bh8 {[%clk 0:02:32]} 19. Bf4 {[%clk 0:02:27]}  Qf5 {[%clk 0:02:23]} 20. Be5 {[%clk 0:02:27]}  f6 {[%clk 0:02:23]} 21. Bg3 {[%clk 0:02:26]}  e5 {[%clk 0:02:24]} 22. Rad1 {[%clk 0:02:24]}  Re7 {[%clk 0:02:19]} 23. Qa3 {[%clk 0:02:20]}  Rae8 {[%clk 0:02:15]} 24. Qxa7 {[%clk 0:01:52]}  e4 {[%clk 0:02:06]} 25. fxe4 {[%clk 0:01:22]}  Rxe4 {[%clk 0:02:00]} 26. Nc3 {[%clk 0:01:15]}  Rxe1+ {[%clk 0:01:55]} 27. Rxe1 {[%clk 0:01:16]}  Rxe1+ {[%clk 0:01:54]} 28. Bxe1 {[%clk 0:01:17]}  Qf4 {[%clk 0:01:45]} 29. Qc5 {[%clk 0:00:36]}  g5 {[%clk 0:01:43]} 30. Nxd5 {[%clk 0:00:31]}  Qe4 {[%clk 0:01:42]} 31. Ne7+ {[%clk 0:00:16]}  Kf7 {[%clk 0:01:43]} 32. Nxc6 {[%clk 0:00:16]}  Qxe1+ {[%clk 0:01:43]} 33. Kh2 {[%clk 0:00:16]}  Qxh4+ {[%clk 0:01:44]} 34. Kg1 {[%clk 0:00:16]}  Qe1+ {[%clk 0:01:45]} 35. Kh2 {[%clk 0:00:16]}  bxc6 {[%clk 0:01:45]} 36. Qxc6 {[%clk 0:00:17]}  h4 {[%clk 0:01:34]} 37. Qd7+ {[%clk 0:00:16]}  Kg6 {[%clk 0:01:34]} 38. a4 {[%clk 0:00:15]}  f5 {[%clk 0:01:31]} 39. a5 {[%clk 0:00:14]}  g4 {[%clk 0:01:31]} 40. Qd6+ {[%clk 0:00:06]}  Bf6 {[%clk 0:01:31]} 41. g3 {[%clk 0:00:07]}  Qf2+ {[%clk 0:01:30]} 42. Kh1 {[%clk 0:00:07]}  hxg3 {[%clk 0:01:29]} 0-1


[Site "https://www.chess.com"]

[Event "Titled Tuesday Blitz February 28 Late 2023"]
[White "Maximov, Dmitry"]
[Black "Bortnyk, Mykola"]
[WhiteFideId "14105659"]
[BlackFideId "14120836"]
[WhiteElo "2494"]
[BlackElo "2582"]
[Result "0-1"]
[Round "06"]
[TimeControl "180+2"]
[Date "2023.02.28"]
[WhiteClock "0:00:01"]
[BlackClock "0:00:01"]

1. e4 {[%clk 0:02:59]}  Nf6 {[%clk 0:03:00]} 2. Nc3 {[%clk 0:02:58]}  d5 {[%clk 0:03:00]} 3. e5 {[%clk 0:02:59]}  Nfd7 {[%clk 0:03:01]} 4. d4 {[%clk 0:02:58]}  c5 {[%clk 0:03:01]} 5. dxc5 {[%clk 0:02:57]}  e6 {[%clk 0:03:01]} 6. Nf3 {[%clk 0:02:57]}  Nc6 {[%clk 0:03:02]} 7. Bf4 {[%clk 0:02:57]}  Be7 {[%clk 0:03:02]} 8. h4 {[%clk 0:02:56]}  Nxc5 {[%clk 0:03:01]} 9. a3 {[%clk 0:02:56]}  a6 {[%clk 0:02:58]} 10. Rh3 {[%clk 0:02:53]}  b5 {[%clk 0:02:52]} 11. Rg3 {[%clk 0:02:48]}  g6 {[%clk 0:02:44]} 12. h5 {[%clk 0:02:34]}  Bb7 {[%clk 0:02:41]} 13. Bd3 {[%clk 0:02:26]}  b4 {[%clk 0:02:36]} 14. axb4 {[%clk 0:02:21]}  Nxd3+ {[%clk 0:02:28]} 15. Qxd3 {[%clk 0:02:20]}  Nxb4 {[%clk 0:02:28]} 16. Qd2 {[%clk 0:02:18]}  d4 {[%clk 0:02:29]} 17. Ne2 {[%clk 0:02:07]}  d3 {[%clk 0:02:24]} 18. cxd3 {[%clk 0:02:06]}  Qxd3 {[%clk 0:02:14]} 19. Rd1 {[%clk 0:01:52]}  Rd8 {[%clk 0:01:59]} 20. Nfd4 {[%clk 0:01:49]}  Qe4 {[%clk 0:01:42]} 21. f3 {[%clk 0:01:32]}  Qd5 {[%clk 0:01:35]} 22. Bg5 {[%clk 0:01:20]}  Qxe5 {[%clk 0:01:25]} 23. Bxe7 {[%clk 0:01:18]}  Rxd4 {[%clk 0:01:25]} 24. Qc3 {[%clk 0:00:22]}  Rxd1+ {[%clk 0:01:11]} 25. Kxd1 {[%clk 0:00:23]}  Qxc3 {[%clk 0:01:10]} 26. bxc3 {[%clk 0:00:23]}  Kxe7 {[%clk 0:00:58]} 27. cxb4 {[%clk 0:00:23]}  Rc8 {[%clk 0:00:54]} 28. hxg6 {[%clk 0:00:23]}  hxg6 {[%clk 0:00:55]} 29. Rg4 {[%clk 0:00:24]}  Bd5 {[%clk 0:00:54]} 30. Kd2 {[%clk 0:00:24]}  e5 {[%clk 0:00:39]} 31. Nc3 {[%clk 0:00:23]}  Be6 {[%clk 0:00:38]} 32. Rh4 {[%clk 0:00:24]}  Rc4 {[%clk 0:00:35]} 33. Rxc4 {[%clk 0:00:19]}  Bxc4 {[%clk 0:00:36]} 34. Ne4 {[%clk 0:00:19]}  Ke6 {[%clk 0:00:33]} 35. Ke3 {[%clk 0:00:17]}  f5 {[%clk 0:00:33]} 36. Nc3 {[%clk 0:00:15]}  f4+ {[%clk 0:00:26]} 37. Kf2 {[%clk 0:00:14]}  Bd3 {[%clk 0:00:26]} 38. g3 {[%clk 0:00:14]}  Kf5 {[%clk 0:00:17]} 39. gxf4 {[%clk 0:00:13]}  exf4 {[%clk 0:00:18]} 40. Nd5 {[%clk 0:00:12]}  Ke5 {[%clk 0:00:17]} 41. Ne7 {[%clk 0:00:12]}  Kd6 {[%clk 0:00:15]} 42. Nc8+ {[%clk 0:00:10]}  Kc6 {[%clk 0:00:13]} 43. Ne7+ {[%clk 0:00:10]}  Kb5 {[%clk 0:00:13]} 44. Nd5 {[%clk 0:00:10]}  g5 {[%clk 0:00:13]} 45. Ke1 {[%clk 0:00:10]}  Bc4 {[%clk 0:00:12]} 46. Nc3+ {[%clk 0:00:09]}  Kxb4 {[%clk 0:00:12]} 47. Ne4 {[%clk 0:00:10]}  a5 {[%clk 0:00:09]} 48. Kd2 {[%clk 0:00:10]}  g4 {[%clk 0:00:06]} 49. fxg4 {[%clk 0:00:09]}  a4 {[%clk 0:00:07]} 50. Kc1 {[%clk 0:00:07]}  a3 {[%clk 0:00:06]} 51. Nf2 {[%clk 0:00:02]}  f3 {[%clk 0:00:05]} 52. Kb1 {[%clk 0:00:02]}  Kc3 {[%clk 0:00:06]} 53. Ka1 {[%clk 0:00:02]}  Kd4 {[%clk 0:00:05]} 54. g5 {[%clk 0:00:02]}  Ke5 {[%clk 0:00:04]} 55. g6 {[%clk 0:00:01]}  Kf6 {[%clk 0:00:01]} 0-1


[Site "https://www.chess.com"]

[Event "Titled Tuesday Blitz February 28 Late 2023"]
[White "Rozman, Levy"]
[Black "Rasulov, Vugar"]
[WhiteFideId "2039877"]
[BlackFideId "13402390"]
[WhiteElo "2376"]
[BlackElo "2509"]
[Result "0-1"]
[Round "06"]
[TimeControl "180+2"]
[Date "2023.02.28"]
[WhiteClock "0:01:40"]
[BlackClock "0:01:39"]

1. e4 {[%clk 0:03:00]}  c5 {[%clk 0:02:59]} 2. Nc3 {[%clk 0:03:00]}  Nc6 {[%clk 0:02:57]} 3. Bb5 {[%clk 0:03:00]}  Nd4 {[%clk 0:02:57]} 4. Nf3 {[%clk 0:03:00]}  a6 {[%clk 0:02:57]} 5. Bc4 {[%clk 0:03:00]}  e6 {[%clk 0:02:54]} 6. O-O {[%clk 0:02:58]}  b5 {[%clk 0:02:52]} 7. Bd3 {[%clk 0:02:57]}  Nc6 {[%clk 0:02:53]} 8. Re1 {[%clk 0:02:53]}  d6 {[%clk 0:02:47]} 9. b3 {[%clk 0:02:49]}  Nf6 {[%clk 0:02:43]} 10. Bb2 {[%clk 0:02:49]}  Be7 {[%clk 0:02:40]} 11. a4 {[%clk 0:02:47]}  b4 {[%clk 0:02:37]} 12. Ne2 {[%clk 0:02:47]}  O-O {[%clk 0:02:37]} 13. Ng3 {[%clk 0:02:44]}  Nd7 {[%clk 0:02:34]} 14. Nh5 {[%clk 0:02:39]}  g6 {[%clk 0:02:24]} 15. Nf4 {[%clk 0:02:34]}  Bf6 {[%clk 0:02:22]} 16. Qc1 {[%clk 0:02:34]}  Nde5 {[%clk 0:02:15]} 17. Be2 {[%clk 0:02:26]}  Bb7 {[%clk 0:02:13]} 18. d3 {[%clk 0:02:16]}  Nxf3+ {[%clk 0:02:06]} 19. Bxf3 {[%clk 0:02:16]}  Nd4 {[%clk 0:02:07]} 20. Bg4 {[%clk 0:01:58]}  Bg5 {[%clk 0:01:57]} 21. h4 {[%clk 0:01:45]}  Bh6 {[%clk 0:01:47]} 22. Bxd4 {[%clk 0:01:43]}  cxd4 {[%clk 0:01:48]} 23. Nxe6 {[%clk 0:01:44]}  Qxh4 {[%clk 0:01:46]} 24. g3 {[%clk 0:01:41]}  Qxg4 {[%clk 0:01:40]} 25. Qxh6 {[%clk 0:01:40]}  fxe6 {[%clk 0:01:39]} 0-1


[Site "https://www.chess.com"]

[Event "Titled Tuesday Blitz February 28 Late 2023"]
[White "Kravtsiv, Martyn"]
[Black "Preotu, Razvan"]
[WhiteFideId "14113147"]
[BlackFideId "2613280"]
[WhiteElo "2695"]
[BlackElo "2407"]
[Result "1-0"]
[Round "06"]
[TimeControl "180+2"]
[Date "2023.02.28"]
[WhiteClock "0:00:17"]
[BlackClock "0:00:10"]

1. e4 {[%clk 0:03:00]}  c5 {[%clk 0:02:59]} 2. Nf3 {[%clk 0:03:01]}  d6 {[%clk 0:03:00]} 3. Bb5+ {[%clk 0:03:00]}  Nd7 {[%clk 0:03:00]} 4. d4 {[%clk 0:02:59]}  cxd4 {[%clk 0:02:59]} 5. Qxd4 {[%clk 0:03:00]}  a6 {[%clk 0:02:59]} 6. Bxd7+ {[%clk 0:03:00]}  Bxd7 {[%clk 0:03:00]} 7. O-O {[%clk 0:02:59]}  Nf6 {[%clk 0:02:55]} 8. Bg5 {[%clk 0:02:58]}  e6 {[%clk 0:02:54]} 9. Nbd2 {[%clk 0:02:58]}  h6 {[%clk 0:02:54]} 10. Bxf6 {[%clk 0:02:47]}  Qxf6 {[%clk 0:02:49]} 11. e5 {[%clk 0:02:47]}  dxe5 {[%clk 0:02:10]} 12. Nxe5 {[%clk 0:02:47]}  Bb5 {[%clk 0:01:36]} 13. c4 {[%clk 0:02:04]}  Rd8 {[%clk 0:01:35]} 14. Qe3 {[%clk 0:02:04]}  Bc6 {[%clk 0:01:14]} 15. Nxc6 {[%clk 0:01:31]}  bxc6 {[%clk 0:01:15]} 16. Ne4 {[%clk 0:01:31]}  Qd4 {[%clk 0:01:05]} 17. Qe2 {[%clk 0:01:22]}  Qd3 {[%clk 0:01:04]} 18. Qxd3 {[%clk 0:01:16]}  Rxd3 {[%clk 0:01:05]} 19. Rfd1 {[%clk 0:01:16]}  Rd7 {[%clk 0:00:59]} 20. Kf1 {[%clk 0:01:09]}  f5 {[%clk 0:00:58]} 21. Nc3 {[%clk 0:01:03]}  Bb4 {[%clk 0:00:55]} 22. Ne2 {[%clk 0:01:03]}  e5 {[%clk 0:00:40]} 23. f4 {[%clk 0:00:57]}  Bd6 {[%clk 0:00:30]} 24. Ng3 {[%clk 0:00:42]}  g6 {[%clk 0:00:29]} 25. Re1 {[%clk 0:00:22]}  e4 {[%clk 0:00:22]} 26. Ne2 {[%clk 0:00:18]}  Bc5 {[%clk 0:00:21]} 27. Red1 {[%clk 0:00:18]}  O-O {[%clk 0:00:10]} 28. Rxd7 {[%clk 0:00:17]} 1-0


[Site "https://www.chess.com"]

[Event "Titled Tuesday Blitz February 28 Late 2023"]
[White "Fedoseev, Vladimir"]
[Black "Rosen, Eric"]
[WhiteFideId "24130737"]
[BlackFideId "2032562"]
[WhiteElo "2752"]
[BlackElo "2359"]
[Result "1-0"]
[Round "06"]
[TimeControl "180+2"]
[Date "2023.02.28"]
[WhiteClock "0:00:07"]
[BlackClock "0:00:06"]

1. e4 {[%clk 0:01:25]}  c5 {[%clk 0:02:59]} 2. Nf3 {[%clk 0:01:25]}  Nc6 {[%clk 0:02:59]} 3. Bb5 {[%clk 0:01:25]}  g6 {[%clk 0:02:59]} 4. O-O {[%clk 0:01:24]}  Bg7 {[%clk 0:02:59]} 5. Re1 {[%clk 0:01:25]}  Nf6 {[%clk 0:02:59]} 6. c3 {[%clk 0:01:22]}  e5 {[%clk 0:02:59]} 7. Bxc6 {[%clk 0:01:18]}  dxc6 {[%clk 0:02:55]} 8. Nxe5 {[%clk 0:01:18]}  O-O {[%clk 0:02:55]} 9. d4 {[%clk 0:01:11]}  Re8 {[%clk 0:02:35]} 10. Bg5 {[%clk 0:00:51]}  h6 {[%clk 0:02:34]} 11. Bh4 {[%clk 0:00:44]}  cxd4 {[%clk 0:02:04]} 12. cxd4 {[%clk 0:00:43]}  Qb6 {[%clk 0:02:05]} 13. Nc3 {[%clk 0:00:37]}  Qxb2 {[%clk 0:02:02]} 14. Qd3 {[%clk 0:00:22]}  Qa3 {[%clk 0:01:41]} 15. Rab1 {[%clk 0:00:20]}  Qd6 {[%clk 0:01:34]} 16. Nc4 {[%clk 0:00:17]}  Qc7 {[%clk 0:01:32]} 17. Bg3 {[%clk 0:00:16]}  Qd8 {[%clk 0:01:27]} 18. Nd6 {[%clk 0:00:16]}  Re7 {[%clk 0:01:26]} 19. e5 {[%clk 0:00:15]}  Ne8 {[%clk 0:01:20]} 20. Nce4 {[%clk 0:00:13]}  Rb8 {[%clk 0:01:00]} 21. Qf3 {[%clk 0:00:13]}  Be6 {[%clk 0:00:51]} 22. h4 {[%clk 0:00:07]}  Rd7 {[%clk 0:00:48]} 23. h5 {[%clk 0:00:07]}  g5 {[%clk 0:00:47]} 24. Nc5 {[%clk 0:00:07]}  Bxa2 {[%clk 0:00:15]} 25. Nxd7 {[%clk 0:00:07]}  Qxd7 {[%clk 0:00:14]} 26. Ra1 {[%clk 0:00:06]}  Bd5 {[%clk 0:00:15]} 27. Qf5 {[%clk 0:00:06]}  Qxf5 {[%clk 0:00:10]} 28. Nxf5 {[%clk 0:00:06]}  Ra8 {[%clk 0:00:11]} 29. Ne7+ {[%clk 0:00:06]}  Kf8 {[%clk 0:00:12]} 30. Nxd5 {[%clk 0:00:07]}  cxd5 {[%clk 0:00:13]} 31. Rec1 {[%clk 0:00:07]}  Ke7 {[%clk 0:00:12]} 32. Ra5 {[%clk 0:00:07]}  Ke6 {[%clk 0:00:12]} 33. Rb1 {[%clk 0:00:07]}  b6 {[%clk 0:00:12]} 34. Rxb6+ {[%clk 0:00:08]}  axb6 {[%clk 0:00:07]} 35. Rxa8 {[%clk 0:00:08]}  Nc7 {[%clk 0:00:08]} 36. Rb8 {[%clk 0:00:09]}  Kf5 {[%clk 0:00:05]} 37. Rxb6 {[%clk 0:00:07]}  Ne6 {[%clk 0:00:06]} 38. Rb7 {[%clk 0:00:07]} 1-0


[Site "https://www.chess.com"]